bitfinex/quotes_SOLUSD_20250901
["timestamp","ask_amount","ask_price","bid_price","bid_amount"]
[1756724841949,0.69,199.82,199.81,39.44]
[1756724842156,4.29933067,199.82,199.81,39.44]
[1756724842726,4.29933067,199.82,199.81,0.12]
[1756724842930,4.29933067,199.82,199.81,39.44]
[1756724843357,3.60933067,199.82,199.81,39.44]
[1756724843878,4.30933067,199.83,199.81,39.44]
[1756724844031,0.7,199.83,199.81,152.44]
[1756724844351,4.30933067,199.83,199.81,152.44]
[1756724846053,0.17216157,199.84,199.81,153.13]
[1756724846357,3.60933067,199.83,199.81,153.13]
[1756724846654,3.60933067,199.83,199.81,152.44]
[1756724847027,3.60933067,199.83,199.81,39.44]
[1756724847950,4.30933067,199.83,199.81,39.44]
[1756724848452,3.60933067,199.82,199.81,39.44]
[1756724849851,9.45599629,199.82,199.81,0.12]
[1756724850042,9.45599629,199.82,199.81,39.44]
[1756724850426,0.84216157,199.82,199.81,39.44]
[1756724850629,35.45599629,199.82,199.81,39.44]
[1756724851431,35.45599629,199.82,199.81,0.12]
[1756724851651,35.45599629,199.82,199.81,39.42]
[1756724852439,29.60933067,199.82,199.81,39.42]
[1756724853145,26.0,199.82,199.81,40.11]
[1756724853340,3.60933067,199.82,199.81,39.42]
[1756724853931,0.03,199.84,199.81,45.11475257]
[1756724854140,0.03,199.84,199.82,0.69]
[1756724854340,3.63933067,199.84,199.81,40.11]
[1756724854559,3.63933067,199.84,199.81,0.81]
[1756724854764,3.60933067,199.83,199.82,39.3]
[1756724855266,3.63933067,199.84,199.82,39.99]
[1756724855455,3.63933067,199.84,199.83,0.69]
[1756724855456,0.03,199.84,199.83,0.69]
[1756724856830,0.03,199.84,199.83,39.3]
[1756724857262,3.63933067,199.84,199.83,39.99]
[1756724857446,0.03,199.84,199.83,39.99]
[1756724858332,3.63933067,199.84,199.81,0.12]
[1756724858534,3.60933067,199.83,199.82,39.3]
[1756724858767,3.63933067,199.84,199.82,39.99]
[1756724859146,3.63933067,199.84,199.83,0.69]
[1756724859946,0.03,199.84,199.83,0.69]
[1756724860457,0.03,199.84,199.83,9.30358428]
[1756724860656,0.03,199.84,199.83,122.30358428]
[1756724861531,0.03,199.84,199.83,118.69425361]
[1756724861753,0.03,199.84,199.83,122.30358428]
[1756724862147,0.03,199.84,199.83,118.69425361]
[1756724862460,0.03,199.84,199.83,122.30358428]
[1756724863261,0.03,199.84,199.83,161.60358428]
[1756724863469,0.03,199.84,199.83,161.58358428]
[1756724863669,0.03,199.84,199.83,122.30358428]
[1756724863962,0.03,199.84,199.83,161.58358428]
[1756724864665,0.03,199.84,199.83,163.58824528]
[1756724864868,0.03,199.84,199.83,124.30824528]
[1756724865471,0.03,199.84,199.83,163.58824528]
[1756724866582,0.03,199.84,199.83,124.30824528]
[1756724866765,0.03,199.84,199.83,163.58824528]
[1756724867877,0.03,199.84,199.83,120.69891461]
[1756724868079,0.03,199.84,199.83,163.58824528]
[1756724868273,0.03,199.84,199.83,154.974661]
[1756724868665,0.03,199.84,199.83,163.58824528]
[1756724871385,0.03,199.84,199.83,124.30824528]
[1756724871573,0.03,199.84,199.83,163.58824528]
[1756724875687,0.03,199.84,199.83,163.56824528]
[1756724878869,0.03,199.84,199.83,177.16383929]
[1756724880066,0.03,199.84,199.83,175.86425907]
[1756724883401,0.03,199.86,199.85,26.0]
[1756724883716,0.03,199.86,199.85,31.00375281]
[1756724883989,0.03,199.86,199.85,2.00446]
[1756724884194,0.03,199.86,199.85,41.24446]
[1756724884401,0.03,199.86,199.85,39.24]
[1756724884578,0.03,199.86,199.84,3.609842]
[1756724884975,0.03,199.86,199.85,5.00375281]
[1756724885164,0.03,199.86,199.85,44.24375281]
[1756724885769,0.03,199.86,199.85,39.24]
[1756724886388,0.03,199.86,199.85,152.24]
[1756724887598,4.24984192,199.86,199.85,152.24]
[1756724887890,4.39200349,199.86,199.85,39.24]
[1756724888120,0.14216157,199.85,199.82,0.12]
[1756724888302,3.75200349,199.83,199.82,0.12]
[1756724888474,20.95743942,199.83,199.82,0.12]
[1756724888673,20.95743942,199.83,199.81,0.12]
[1756724888674,13.73775558,199.82,199.81,0.12]
[1756724888896,17.3475975,199.82,199.81,0.12]
[1756724889200,22.84210155,199.82,199.81,0.12]
[1756724889922,0.63216157,199.82,199.81,0.12]
[1756724890081,4.24200349,199.82,199.81,0.12]
[1756724890402,4.24200349,199.82,199.81,23.44]
[1756724891310,3.75200349,199.82,199.81,23.44]
[1756724891621,4.24200349,199.82,199.81,0.12]
[1756724891783,9.24650754,199.82,199.81,39.36]
[1756724892177,0.14216157,199.82,199.81,39.36]
[1756724892376,4.24200349,199.82,199.81,39.36]
[1756724892576,4.24200349,199.82,199.81,0.12]
[1756724892809,4.24200349,199.82,199.81,39.36]
[1756724893192,4.24200349,199.82,199.81,0.12]
[1756724893603,26.0,199.83,199.81,39.36]
[1756724893791,26.0,199.83,199.82,39.24]
[1756724894397,26.0,199.83,199.81,0.12]
[1756724894612,0.63216157,199.82,199.81,39.36]
[1756724894986,4.24200349,199.82,199.81,39.36]
[1756724895194,3.75200349,199.82,199.81,39.36]
[1756724895417,4.24200349,199.82,199.81,39.36]
[1756724895581,9.24650754,199.82,199.81,39.36]
[1756724895784,9.24650754,199.82,199.81,0.12]
[1756724895982,9.24650754,199.82,199.81,39.36]
[1756724897380,3.75200349,199.82,199.81,39.36]
[1756724898616,9.24650754,199.82,199.81,0.12]
[1756724898988,24.84806955,199.82,199.81,0.12]
[1756724901998,11.25247554,199.82,199.81,0.12]
[1756724902304,24.84806955,199.82,199.81,0.12]
[1756724902606,22.84210155,199.82,199.81,0.12]
[1756724902809,24.84806955,199.82,199.81,0.12]
[1756724905928,24.35806955,199.82,199.81,0.12]
[1756724908523,24.84806955,199.82,199.81,0.12]
[1756724909298,28.45791147,199.82,199.81,1e-08]
[1756724909610,0.14216157,199.81,199.8,0.12]
[1756724909804,7.85184541,199.81,199.8,0.12]
[1756724911726,14.86286992,199.81,199.8,0.12]
[1756724912430,14.76286992,199.81,199.8,0.12]
[1756724912607,14.72070835,199.81,199.8,0.12]
[1756724912935,10.62086643,199.81,199.8,0.12]
[1756724913107,24.21646044,199.81,199.8,0.12]
[1756724914533,24.35862201,199.81,199.8,0.12]
[1756724914733,28.45846393,199.81,199.8,0.12]
[1756724914921,39.59559401,199.78,199.77,0.12]
[1756724915112,0.14216157,199.77,199.76,0.12]
[1756724915331,0.63216157,199.77,199.76,0.12]
[1756724915505,6.24867549,199.77,199.76,0.12]
[1756724915810,11.25443211,199.77,199.76,0.12]
[1756724916428,20.7501842,199.77,199.76,0.12]
[1756724916608,24.36002612,199.77,199.76,0.12]
[1756724918209,26.14216157,199.75,199.74,0.12]
[1756724918426,26.14216157,199.74,199.72,0.12]
[1756724918625,69.48200349,199.74,199.72,0.12]
[1756724918821,30.24200349,199.74,199.72,0.12]
[1756724919044,69.48200349,199.74,199.72,0.12]
[1756724919904,74.48851195,199.74,199.72,0.12]
[1756724920846,88.08410596,199.74,199.72,0.12]
[1756724921212,13.73775558,199.73,199.72,0.12]
[1756724921431,20.95743942,199.73,199.71,0.12]
[1756724921632,60.68743942,199.72,199.71,0.12]
[1756724922724,60.68743942,199.72,199.66,0.69]
[1756724922914,0.14216157,199.66,199.64,0.12]
[1756724923110,3.60984192,199.65,199.64,0.12]
[1756724923318,8.61860725,199.65,199.64,0.12]
[1756724923634,8.61860725,199.65,199.64,0.81]
[1756724924207,22.35636283,199.65,199.64,0.81]
[1756724924614,22.35636283,199.65,199.64,0.12]
[1756724929211,13.59559401,199.63,199.62,0.12]
[1756724929445,56.5875975,199.63,199.62,0.12]
[1756724930245,63.60504764,199.63,199.62,0.12]
[1756724930426,63.60504764,199.63,199.61,0.2]
[1756724930427,67.70488956,199.63,199.61,0.2]
[1756724930627,46.81527785,199.6,199.59,0.2]
[1756724930834,86.19743942,199.6,199.59,0.2]
[1756724931342,39.73775558,199.6,199.59,0.89]
[1756724931526,43.3475975,199.6,199.59,0.89]
[1756724932230,48.35761754,199.6,199.59,0.2]
[1756724933236,48.35761754,199.6,199.59,0.92]
[1756724933845,3.75200349,199.6,199.59,0.92]
[1756724934150,3.60984192,199.61,199.59,0.92]
[1756724934444,3.75200349,199.6,199.59,0.2]
[1756724934943,3.75200349,199.6,199.59,0.92]
[1756724935241,3.75200349,199.6,199.59,113.92]
[1756724935542,3.75200349,199.6,199.59,0.92]
[1756724936417,0.14216157,199.6,199.59,0.92]
[1756724936637,3.60984192,199.6,199.59,0.92]
[1756724936818,29.60984192,199.61,199.59,0.92]
[1756724937025,29.60984192,199.61,199.6,0.72]
[1756724937339,0.14216157,199.63,199.6,0.72]
[1756724937540,134.7,199.64,199.6,0.72]
[1756724937935,178.94776279,199.69,199.6,4.32984192]
[1756724938131,3.60984192,199.65,199.61,0.72]
[1756724938338,29.60984192,199.66,199.62,5.00951808]
[1756724938546,3.60984192,199.65,199.63,0.72]
[1756724938844,29.60984192,199.65,199.63,0.72]
[1756724940345,3.60984192,199.66,199.63,0.72]
[1756724941154,3.60984192,199.64,199.61,113.0]
[1756724941534,3.60984192,199.65,199.61,113.0]
[1756724941744,3.60984192,199.65,199.62,0.72]
[1756724942050,26.0,199.68,199.62,4.32984192]
[1756724942234,3.60984192,199.67,199.63,0.72]
[1756724942430,3.60984192,199.67,199.63,5.72902773]
[1756724942637,3.60984192,199.67,199.64,0.72]
[1756724942839,29.60984192,199.68,199.64,0.72]
[1756724944025,134.7,199.69,199.64,4.32984192]
[1756724944230,3.60984192,199.7,199.64,4.32984192]
[1756724944443,3.60984192,199.7,199.65,0.72]
[1756724944644,3.60984192,199.71,199.66,5.00851447]
[1756724944847,3.60984192,199.71,199.67,0.72]
[1756724945243,3.60984192,199.7,199.68,0.72]
[1756724945444,3.60984192,199.7,199.69,0.72]
[1756724946630,3.63984192,199.71,199.69,0.72]
[1756724946836,0.03,199.71,199.69,5.72765738]
[1756724947035,0.03,199.71,199.7,0.72]
[1756724949533,0.03,199.71,199.7,5.72751126]
[1756724951546,0.03,199.71,199.7,0.72]
[1756724951742,0.03,199.71,199.7,39.94]
[1756724952441,0.03,199.71,199.7,43.54984192]
[1756724952766,0.03,199.71,199.7,39.94]
[1756724953333,0.03,199.71,199.7,113.72]
[1756724954365,0.03,199.71,199.7,117.32984192]
[1756724954563,0.03,199.71,199.7,156.54984192]
[1756724955259,0.03,199.71,199.7,117.32984192]
[1756724955560,0.03,199.71,199.7,156.54984192]
[1756724956036,0.03,199.71,199.7,113.72]
[1756724956450,0.03,199.71,199.7,152.94]
[1756724957555,0.03,199.71,199.7,113.72]
[1756724957865,0.03,199.71,199.7,152.94]
[1756724958243,0.03,199.71,199.7,156.54984192]
[1756724958947,0.03,199.71,199.7,152.94]
[1756724959141,0.03,199.71,199.7,156.54984192]
[1756724959549,0.03,199.71,199.7,117.32984192]
[1756724959744,0.03,199.71,199.7,156.54984192]
[1756724960147,0.03,199.71,199.7,113.72]
[1756724960438,0.03,199.71,199.7,113.0]
[1756724960676,0.03,199.71,199.65,0.72]
[1756724960677,0.14216157,199.7,199.65,0.72]
[1756724960979,3.60984192,199.68,199.63,3.60984192]
[1756724961276,3.60984192,199.68,199.64,39.92]
[1756724961637,5.49776203,199.69,199.64,39.92]
[1756724961870,3.75200349,199.68,199.65,0.67]
[1756724962075,0.14216157,199.68,199.65,0.67]
[1756724962250,3.75200349,199.68,199.65,0.67]
[1756724963176,5.15023861,199.68,199.64,42.80984192]
[1756724963370,0.14216157,199.68,199.66,0.67]
[1756724963570,0.14216157,199.68,199.66,113.67]
[1756724964150,5.15018764,199.68,199.66,113.67]
[1756724964376,8.76002956,199.68,199.66,113.0]
[1756724964875,3.60984192,199.67,199.62,0.67]
[1756724965076,3.60984192,199.67,199.63,39.87]
[1756724965287,5.00851447,199.66,199.63,39.87]
[1756724965584,5.00851447,199.66,199.63,0.67]
[1756724965876,5.00851447,199.66,199.64,39.2]
[1756724965877,8.61835639,199.66,199.64,39.2]
[1756724966076,3.60984192,199.65,199.63,39.2]
[1756724966384,8.61835639,199.66,199.63,39.2]
[1756724966596,5.00851447,199.66,199.64,0.67]
[1756724966746,5.00851447,199.66,199.65,0.67]
[1756724966952,31.00827649,199.67,199.65,0.67]
[1756724967180,34.61811841,199.67,199.63,39.87]
[1756724967382,3.60984192,199.64,199.6,0.79]
[1756724967567,3.60984192,199.64,199.62,39.2]
[1756724967773,8.61860725,199.65,199.62,152.2]
[1756724967980,8.61860725,199.65,199.62,113.0]
[1756724968293,8.61860725,199.65,199.62,152.2]
[1756724969077,8.61860725,199.65,199.61,0.67]
[1756724969078,3.60984192,199.63,199.61,39.2]
[1756724969269,5.00976904,199.61,199.6,0.12]
[1756724969648,26.14216157,199.62,199.6,0.79]
[1756724970480,0.14216157,199.62,199.6,0.79]
[1756724970783,5.15170326,199.62,199.6,0.79]
[1756724972068,5.15170326,199.62,199.6,113.79]
[1756724972253,0.14216157,199.62,199.61,0.67]
[1756724973353,3.60984192,199.65,199.61,0.67]
[1756724973557,0.03,199.71,199.63,3.60984192]
[1756724973781,5.00751126,199.7,199.65,3.60984192]
[1756724973959,34.61735318,199.7,199.66,39.87]
[1756724974161,26.0,199.68,199.67,0.67]
[1756724974560,8.61735318,199.7,199.66,39.2]
[1756724974769,8.61735318,199.7,199.66,39.87]
[1756724974963,0.14216157,199.69,199.66,39.87]
[1756724975163,3.75200349,199.67,199.65,39.2]
[1756724975471,3.75200349,199.7,199.66,0.67]
[1756724976078,3.60984192,199.69,199.65,39.2]
[1756724976287,0.14216157,199.68,199.66,39.2]
[1756724976483,5.15020446,199.68,199.66,39.2]
[1756724976691,8.76004638,199.68,199.66,39.2]
[1756724976885,5.15020446,199.68,199.66,39.2]
[1756724977064,8.76004638,199.68,199.66,39.2]
[1756724978597,8.76004638,199.68,199.64,0.67]
[1756724978881,8.76004638,199.68,199.65,0.67]
[1756724979091,5.15020446,199.68,199.66,0.67]
[1756724980277,5.18020446,199.68,199.66,0.67]
[1756724981215,0.03,199.68,199.67,4.27984192]
[1756724982071,0.03,199.68,199.67,0.67]
[1756724982794,0.03,199.68,199.67,117.27984192]
[1756724984569,0.03,199.68,199.67,122.28810555]
[1756724986293,0.03,199.68,199.67,161.48810555]
[1756724988181,0.03,199.68,199.67,161.46810555]
[1756724990816,0.03,199.68,199.67,122.28810555]
[1756724990983,0.03,199.68,199.67,161.46810555]
[1756724993889,0.03,199.68,199.67,166.56207579]
[1756724996487,0.03,199.68,199.67,127.38207579]
[1756724996904,0.03,199.68,199.67,166.56207579]
[1756724997810,0.03,199.68,199.67,168.56824479]
[1756724999712,0.03,199.68,199.67,127.38207579]
[1756724999911,0.03,199.68,199.67,166.54207579]
[1756725002113,0.03,199.68,199.67,182.1438388]
[1756725002903,0.03,199.68,199.67,177.04986856]
[1756725003295,0.03,199.68,199.67,118.00826363]
[1756725003498,0.52,199.68,199.67,155.76984192]
[1756725004015,0.03,199.68,199.67,155.76984192]
[1756725004598,0.03,199.68,199.67,160.77810555]
[1756725006016,0.52,199.68,199.67,152.16]
[1756725006220,0.52,199.68,199.67,39.16]
[1756725009106,0.52,199.68,199.67,152.16]
[1756725009431,0.52,199.68,199.67,113.0]
[1756725009727,0.52,199.68,199.67,152.16]
[1756725009903,0.52,199.68,199.67,113.0]
[1756725010108,26.0,199.65,199.6,0.12]
[1756725010313,26.0,199.65,199.61,33.9]
[1756725010314,4.09984192,199.64,199.61,33.9]
[1756725010519,4.09984192,199.63,199.6,0.12]
[1756725010726,4.09984192,199.63,199.61,39.16]
[1756725010893,0.49,199.62,199.61,39.16]
[1756725011827,4.09984192,199.62,199.6,0.12]
[1756725012028,8.61944581,199.62,199.61,39.16]
[1756725012416,0.14216157,199.64,199.61,39.16]
[1756725012725,0.49,199.63,199.61,39.16]
[1756725012958,0.49,199.62,199.61,39.16]
[1756725014021,5.49951808,199.62,199.61,39.16]
[1756725014723,0.49,199.62,199.61,39.16]
[1756725014926,5.00976904,199.61,199.6,0.12]
[1756725015145,4.09984192,199.61,199.6,0.12]
[1756725016006,35.10961096,199.61,199.6,0.12]
[1756725017818,26.14216157,199.61,199.6,0.12]
[1756725018007,26.0,199.61,199.6,113.12]
[1756725018616,134.7,199.63,199.6,113.12]
[1756725018808,134.7,199.63,199.61,42.76984192]
[1756725019007,134.7,199.63,199.61,39.85]
[1756725019420,134.7,199.63,199.61,0.69]
[1756725019606,134.7,199.63,199.61,39.85]
[1756725020617,134.7,199.63,199.61,39.16]
[1756725020937,139.70928977,199.63,199.61,39.16]
[1756725022125,134.7,199.63,199.61,39.16]
[1756725023016,134.7,199.63,199.6,0.12]
[1756725023232,134.7,199.63,199.6,39.28]
[1756725023735,134.7,199.63,199.6,40.0]
[1756725023909,134.7,199.63,199.6,156.60984192]
[1756725024314,143.31918967,199.63,199.6,113.12]
[1756725024530,138.30984192,199.63,199.6,152.28]
[1756725024733,134.7,199.63,199.6,153.0]
[1756725027140,134.7,199.63,199.61,4.32984192]
[1756725027321,134.7,199.63,199.62,39.88]
[1756725028219,0.14216157,199.65,199.62,43.48984192]
[1756725028418,26.0,199.66,199.63,0.72]
[1756725028830,26.0,199.66,199.64,39.16]
[1756725029414,29.60984192,199.66,199.64,39.16]
[1756725029616,34.61839931,199.66,199.64,39.16]
[1756725030234,34.61839931,199.66,199.64,152.16]
[1756725031031,26.0,199.66,199.64,152.16]
[1756725032844,34.61837205,199.66,199.64,152.16]
[1756725033146,35.10837205,199.66,199.61,3.60984192]
[1756725033447,34.61837205,199.66,199.62,39.86]
[1756725033832,34.61837205,199.66,199.62,0.72]
[1756725034236,34.61837205,199.66,199.63,39.14]
[1756725035038,8.76101632,199.65,199.63,39.14]
[1756725035239,3.60984192,199.64,199.63,39.14]
[1756725035548,8.76101632,199.65,199.63,39.14]
[1756725036835,5.1511744,199.65,199.63,39.14]
[1756725037522,5.1511744,199.65,199.6,0.12]
[1756725037523,0.14216157,199.63,199.6,0.12]
[1756725037847,3.60984192,199.62,199.6,0.12]
[1756725038023,3.75200349,199.63,199.6,0.12]
[1756725038422,3.75200349,199.63,199.6,0.84]
[1756725038625,0.14216157,199.65,199.62,3.60984192]
[1756725038840,0.14216157,199.66,199.63,4.32984192]
[1756725039019,0.14216157,199.66,199.64,39.86]
[1756725039737,134.7,199.67,199.65,0.72]
[1756725039920,134.7,199.67,199.66,0.72]
[1756725040558,134.7,199.67,199.66,113.72]
[1756725040726,134.7,199.67,199.66,0.72]
[1756725040923,0.03,199.68,199.66,0.72]
[1756725041144,0.03,199.68,199.67,42.74984192]
[1756725041459,0.03,199.68,199.67,39.14]
[1756725041637,0.03,199.68,199.67,42.74984192]
[1756725041960,0.03,199.68,199.67,43.46984192]
[1756725042818,0.03,199.68,199.67,0.72]
[1756725043044,0.03,199.68,199.67,39.86]
[1756725043758,0.03,199.68,199.67,152.86]
[1756725050055,0.03,199.68,199.67,152.84]
[1756725054150,0.03,199.68,199.67,39.84]
[1756725054555,0.03,199.68,199.67,48.45810555]
[1756725055841,0.03,199.68,199.67,39.84]
[1756725057233,0.03,199.68,199.67,152.84]
[1756725059637,0.03,199.68,199.67,156.44984192]
[1756725064039,0.03,199.68,199.67,152.84]
[1756725064360,0.03,199.68,199.67,156.44984192]
[1756725066754,0.03,199.68,199.67,152.84]
[1756725067059,0.03,199.68,199.67,156.44984192]
[1756725068134,0.52,199.68,199.67,113.0]
[1756725068335,0.14216157,199.67,199.6,0.84]
[1756725068536,3.60984192,199.64,199.61,39.1]
[1756725068748,3.75200349,199.65,199.62,0.72]
[1756725068972,3.75200349,199.65,199.63,39.1]
[1756725069343,0.03,199.68,199.64,0.72]
[1756725069573,4.12984192,199.68,199.65,39.1]
[1756725069778,4.24200349,199.67,199.65,39.1]
[1756725070073,3.60984192,199.66,199.61,4.32984192]
[1756725070282,3.75200349,199.67,199.62,43.42984192]
[1756725070573,3.75200349,199.67,199.63,0.72]
[1756725070779,3.75200349,199.67,199.64,39.82]
[1756725070981,3.75200349,199.67,199.65,39.1]
[1756725072247,8.76027769,199.67,199.65,39.1]
[1756725072881,8.76027769,199.67,199.62,113.0]
[1756725072882,0.49,199.66,199.64,39.1]
[1756725073184,3.60984192,199.65,199.64,39.1]
[1756725073482,26.14216157,199.64,199.6,0.12]
[1756725073668,3.60984192,199.61,199.6,0.12]
[1756725073872,3.60984192,199.62,199.6,39.22]
[1756725076154,8.61939006,199.62,199.6,39.22]
[1756725076465,8.61939006,199.62,199.6,152.22]
[1756725078372,8.61939006,199.62,199.6,113.12]
[1756725078877,8.61939006,199.62,199.6,152.22]
[1756725079074,3.60984192,199.61,199.6,113.12]
[1756725079372,3.60984192,199.61,199.6,0.12]
[1756725080853,9.10961096,199.61,199.6,0.12]
[1756725081289,9.25177253,199.61,199.6,0.12]
[1756725081650,4.24200349,199.61,199.6,0.12]
[1756725081850,143.95177253,199.61,199.6,0.12]
[1756725083007,143.46177253,199.61,199.6,0.12]
[1756725083196,143.95177253,199.61,199.6,0.12]
[1756725083861,22.84736654,199.61,199.6,0.12]
[1756725085590,13.73775558,199.6,199.58,1e-08]
[1756725085780,3.75200349,199.59,199.58,1e-08]
[1756725085980,4.24200349,199.59,199.58,1e-08]
[1756725086192,43.34200349,199.59,199.58,1e-08]
[1756725086591,4.24200349,199.59,199.58,1e-08]
[1756725086765,39.73216157,199.59,199.58,1e-08]
[1756725086970,43.34200349,199.59,199.58,1e-08]
[1756725087174,9.25227454,199.59,199.58,1e-08]
[1756725087379,48.35227454,199.59,199.58,1e-08]
[1756725087782,5.15243262,199.59,199.58,1e-08]
[1756725087982,8.76227454,199.59,199.58,0.69000001]
[1756725088190,0.14216157,199.59,199.58,0.69000001]
[1756725088380,29.60984192,199.6,199.58,0.69000001]
[1756725088381,3.60984192,199.6,199.58,0.69000001]
[1756725088570,29.60984192,199.59,199.58,1e-08]
[1756725088774,29.60984192,199.59,199.58,0.69000001]
[1756725089286,31.01022696,199.6,199.58,0.69000001]
[1756725089475,3.60984192,199.59,199.58,1e-08]
[1756725090079,34.62006888,199.6,199.58,0.69000001]
[1756725090299,34.62006888,199.6,199.58,1e-08]
[1756725090300,3.75200349,199.59,199.58,1e-08]
[1756725090894,3.75200349,199.59,199.58,0.69000001]
[1756725091095,29.60984192,199.59,199.58,0.69000001]
[1756725092096,26.0,199.59,199.58,0.69000001]
[1756725093275,34.61988997,199.6,199.58,0.69000001]
[1756725094198,26.0,199.61,199.58,1e-08]
[1756725094410,3.60984192,199.59,199.58,1e-08]
[1756725094777,3.60984192,199.59,199.58,0.69000001]
[1756725095076,3.60984192,199.6,199.58,0.69000001]
[1756725095288,26.0,199.61,199.59,0.69]
[1756725095509,26.0,199.59,199.58,1e-08]
[1756725095682,5.181719,199.62,199.58,1e-08]
[1756725095683,0.03,199.62,199.58,42.70984193]
[1756725095883,0.03,199.62,199.6,3.60984192]
[1756725096085,0.03,199.62,199.6,39.1]
[1756725096394,0.03,199.62,199.61,0.69]
[1756725097306,0.03,199.62,199.61,9.30961096]
[1756725097480,0.03,199.62,199.61,0.69]
[1756725100407,0.03,199.62,199.59,0.69]
[1756725100602,3.60984192,199.61,199.59,39.77]
[1756725100804,3.60984192,199.61,199.59,0.69]
[1756725101117,0.03,199.62,199.58,1e-08]
[1756725101118,29.60984192,199.6,199.58,1e-08]
[1756725101281,3.60984192,199.59,199.58,1e-08]
[1756725101481,8.76227454,199.59,199.58,1e-08]
[1756725102100,22.84786855,199.59,199.58,1e-08]
[1756725103891,19.23802663,199.59,199.58,1e-08]
[1756725104092,8.76227454,199.59,199.58,1e-08]
[1756725104291,9.25227454,199.59,199.58,1e-08]
[1756725104496,22.84786855,199.59,199.58,1e-08]
[1756725105010,8.76227454,199.59,199.58,1e-08]
[1756725106293,34.76227454,199.59,199.58,1e-08]
[1756725106992,29.75200349,199.59,199.58,0.69000001]
[1756725107206,29.60984192,199.59,199.58,0.69000001]
[1756725107413,29.60984192,199.59,199.58,1e-08]
[1756725107591,29.60984192,199.59,199.58,0.69000001]
[1756725107790,29.60984192,199.59,199.58,1e-08]
[1756725107988,29.75200349,199.59,199.58,1e-08]
[1756725108194,29.75200349,199.59,199.58,0.69000001]
[1756725108707,0.03,199.62,199.58,0.69000001]
[1756725109023,3.60984192,199.61,199.58,0.69000001]
[1756725109415,29.60984192,199.6,199.59,0.69]
[1756725109593,3.60984192,199.6,199.59,0.69]
[1756725110699,3.60984192,199.6,199.58,1e-08]
[1756725110995,3.60984192,199.59,199.58,0.69000001]
[1756725111628,31.03953747,199.62,199.58,0.69000001]
[1756725111629,3.60984192,199.6,199.58,0.69000001]
[1756725112620,29.75200349,199.59,199.58,1e-08]
[1756725113032,29.60984192,199.59,199.58,0.67000001]
[1756725113400,3.60984192,199.61,199.58,0.67000001]
[1756725113601,0.14216157,199.61,199.58,0.67000001]
[1756725113805,0.14216157,199.61,199.58,1e-08]
[1756725114011,0.14216157,199.61,199.59,0.67]
[1756725114220,0.14216157,199.61,199.6,0.67]
[1756725114732,8.76177253,199.61,199.59,113.0]
[1756725114900,3.60984192,199.6,199.58,1e-08]
[1756725115228,3.60984192,199.59,199.58,0.67000001]
[1756725115930,29.60984192,199.6,199.58,0.67000001]
[1756725116502,34.61987308,199.6,199.58,0.67000001]
[1756725116899,26.14216157,199.6,199.59,0.67]
[1756725117334,29.75200349,199.6,199.58,1e-08]
[1756725117630,3.60984192,199.59,199.58,0.67000001]
[1756725117811,3.60984192,199.59,199.58,113.00000001]
[1756725118398,3.60984192,199.59,199.58,1e-08]
[1756725119111,31.15226684,199.6,199.58,1e-08]
[1756725119312,8.62011297,199.59,199.58,1e-08]
[1756725119528,8.76227454,199.59,199.58,1e-08]
[1756725120536,9.25227454,199.59,199.58,1e-08]